[Event "Titled Tuesday Blitz November 29 Early 2022"]
[White "Blokhin, Sofia"]
[Black "Roque Sola, Jose Luis"]
[WhiteFideId "4508190"]
[BlackFideId "5120390"]
[WhiteElo "2005"]
[BlackElo "2117"]
[Result "1-0"]
[Round "09"]
[TimeControl "180+1"]
[Date "2022.11.30"]
[WhiteClock "0:00:45"]
[BlackClock "0:00:09"]

1. e4 {[%clk 0:03:00]}  e6 {[%clk 0:02:55]} 2. d4 {[%clk 0:03:00]}  d5 {[%clk 0:02:54]} 3. e5 {[%clk 0:02:59]}  c5 {[%clk 0:02:54]} 4. c3 {[%clk 0:02:59]}  Nc6 {[%clk 0:02:53]} 5. Nf3 {[%clk 0:02:59]}  Nge7 {[%clk 0:02:52]} 6. a3 {[%clk 0:02:59]}  cxd4 {[%clk 0:02:50]} 7. cxd4 {[%clk 0:02:59]}  Nf5 {[%clk 0:02:50]} 8. Nc3 {[%clk 0:02:52]}  Be7 {[%clk 0:02:46]} 9. Be3 {[%clk 0:02:48]}  Bd7 {[%clk 0:02:39]} 10. Bd3 {[%clk 0:02:46]}  Nxe3 {[%clk 0:02:02]} 11. fxe3 {[%clk 0:02:45]}  Rc8 {[%clk 0:01:51]} 12. O-O {[%clk 0:02:44]}  Na5 {[%clk 0:01:48]} 13. Qc2 {[%clk 0:02:41]}  Nc4 {[%clk 0:01:45]} 14. Rae1 {[%clk 0:02:38]}  Qa5 {[%clk 0:01:32]} 15. e4 {[%clk 0:02:21]}  Nxa3 {[%clk 0:01:24]} 16. Qb3 {[%clk 0:02:11]}  dxe4 {[%clk 0:01:16]} 17. Nxe4 {[%clk 0:02:02]}  Nb5 {[%clk 0:01:08]} 18. Rc1 {[%clk 0:01:41]}  O-O {[%clk 0:01:05]} 19. h4 {[%clk 0:01:28]}  Qb6 {[%clk 0:00:54]} 20. Bxb5 {[%clk 0:01:17]}  Qxb5 {[%clk 0:00:52]} 21. Qe3 {[%clk 0:01:11]}  Qxb2 {[%clk 0:00:44]} 22. Rb1 {[%clk 0:01:09]}  Qa3 {[%clk 0:00:31]} 23. Qf4 {[%clk 0:01:01]}  Bc6 {[%clk 0:00:27]} 24. Nf6+ {[%clk 0:00:51]}  Bxf6 {[%clk 0:00:19]} 25. exf6 {[%clk 0:00:49]}  Bxf3 {[%clk 0:00:16]} 26. Qg5 {[%clk 0:00:45]}  g6 {[%clk 0:00:09]} 27. Qh6 {[%clk 0:00:45]} 1-0


[Site "https://www.chess.com"]

[Event "Titled Tuesday Blitz November 29 Early 2022"]
[White "Boros, Denes"]
[Black "Bok, Benjamin"]
[WhiteFideId "722340"]
[BlackFideId "1017063"]
[WhiteElo "2464"]
[BlackElo "2658"]
[Result "1/2-1/2"]
[Round "09"]
[TimeControl "180+1"]
[Date "2022.11.29"]
[WhiteClock "0:00:11"]
[BlackClock "0:00:04"]

1. d4 {[%clk 0:03:00]}  Nf6 {[%clk 0:02:59]} 2. Nc3 {[%clk 0:03:00]}  d5 {[%clk 0:03:00]} 3. Nf3 {[%clk 0:03:00]}  Bf5 {[%clk 0:02:58]} 4. Bf4 {[%clk 0:02:58]}  e6 {[%clk 0:02:57]} 5. e3 {[%clk 0:02:58]}  Bb4 {[%clk 0:02:52]} 6. Bd3 {[%clk 0:02:58]}  Ne4 {[%clk 0:02:47]} 7. O-O {[%clk 0:02:58]}  O-O {[%clk 0:02:38]} 8. Ne2 {[%clk 0:02:43]}  Bd6 {[%clk 0:02:32]} 9. c4 {[%clk 0:02:40]}  dxc4 {[%clk 0:02:22]} 10. Bxc4 {[%clk 0:02:37]}  Nc6 {[%clk 0:02:22]} 11. Bb5 {[%clk 0:02:34]}  Ne7 {[%clk 0:02:18]} 12. Ne5 {[%clk 0:02:16]}  Nd5 {[%clk 0:02:07]} 13. Bg3 {[%clk 0:02:08]}  c6 {[%clk 0:02:00]} 14. Bc4 {[%clk 0:02:03]}  Nxg3 {[%clk 0:01:41]} 15. Nxg3 {[%clk 0:02:04]}  Bxe5 {[%clk 0:01:41]} 16. dxe5 {[%clk 0:02:05]}  Bg6 {[%clk 0:01:42]} 17. Qg4 {[%clk 0:02:01]}  Qc7 {[%clk 0:01:30]} 18. Bxd5 {[%clk 0:01:44]}  cxd5 {[%clk 0:01:30]} 19. Qd4 {[%clk 0:01:20]}  Rfc8 {[%clk 0:01:29]} 20. Ne2 {[%clk 0:01:19]}  Qc2 {[%clk 0:01:22]} 21. Qg4 {[%clk 0:01:07]}  Qxb2 {[%clk 0:00:45]} 22. Nd4 {[%clk 0:01:04]}  Rc3 {[%clk 0:00:42]} 23. h4 {[%clk 0:01:02]}  h5 {[%clk 0:00:41]} 24. Qg5 {[%clk 0:01:00]}  Kh7 {[%clk 0:00:24]} 25. a4 {[%clk 0:00:42]}  Rac8 {[%clk 0:00:24]} 26. Nb5 {[%clk 0:00:27]}  Rc1 {[%clk 0:00:23]} 27. Rfxc1 {[%clk 0:00:25]}  Rxc1+ {[%clk 0:00:24]} 28. Rxc1 {[%clk 0:00:25]}  Qxc1+ {[%clk 0:00:25]} 29. Kh2 {[%clk 0:00:25]}  Qc2 {[%clk 0:00:25]} 30. Qf4 {[%clk 0:00:24]}  a6 {[%clk 0:00:18]} 31. Nd6 {[%clk 0:00:24]}  Qc7 {[%clk 0:00:08]} 32. g4 {[%clk 0:00:20]}  hxg4 {[%clk 0:00:08]} 33. Qxg4 {[%clk 0:00:21]}  b6 {[%clk 0:00:07]} 34. h5 {[%clk 0:00:21]}  Bc2 {[%clk 0:00:07]} 35. Qf4 {[%clk 0:00:21]}  Kg8 {[%clk 0:00:06]} 36. h6 {[%clk 0:00:18]}  gxh6 {[%clk 0:00:06]} 37. Ne8 {[%clk 0:00:17]}  Qe7 {[%clk 0:00:06]} 38. Nf6+ {[%clk 0:00:17]}  Kg7 {[%clk 0:00:06]} 39. Nh5+ {[%clk 0:00:14]}  Kh7 {[%clk 0:00:05]} 40. Nf6+ {[%clk 0:00:13]}  Kg7 {[%clk 0:00:06]} 41. Nh5+ {[%clk 0:00:12]}  Kf8 {[%clk 0:00:05]} 42. Nf6 {[%clk 0:00:11]}  Kg7 {[%clk 0:00:04]} 1/2-1/2


[Site "https://www.chess.com"]

[Event "Titled Tuesday Blitz November 29 Early 2022"]
[White "Caruana, Fabiano"]
[Black "Dubov, Daniil"]
[WhiteFideId "2020009"]
[BlackFideId "24126055"]
[WhiteElo "3080"]
[BlackElo "3072"]
[Result "0-1"]
[Round "09"]
[TimeControl "180+1"]
[Date "2022.11.29"]
[WhiteClock "0:00:42"]
[BlackClock "0:00:32"]

1. d4 {[%clk 0:03:00]}  Nf6 {[%clk 0:02:59]} 2. c4 {[%clk 0:03:01]}  e6 {[%clk 0:02:59]} 3. Nc3 {[%clk 0:03:01]}  d5 {[%clk 0:03:00]} 4. cxd5 {[%clk 0:03:01]}  exd5 {[%clk 0:03:01]} 5. Nf3 {[%clk 0:03:00]}  c6 {[%clk 0:02:59]} 6. Bf4 {[%clk 0:02:59]}  Bd6 {[%clk 0:02:59]} 7. Bxd6 {[%clk 0:02:59]}  Qxd6 {[%clk 0:02:59]} 8. e3 {[%clk 0:03:00]}  O-O {[%clk 0:02:59]} 9. Bd3 {[%clk 0:03:00]}  Bg4 {[%clk 0:02:59]} 10. h3 {[%clk 0:02:59]}  Bxf3 {[%clk 0:02:59]} 11. Qxf3 {[%clk 0:03:00]}  Nbd7 {[%clk 0:02:59]} 12. O-O {[%clk 0:03:01]}  Rfe8 {[%clk 0:02:58]} 13. Rab1 {[%clk 0:03:01]}  a6 {[%clk 0:02:58]} 14. Rfc1 {[%clk 0:02:57]}  Nf8 {[%clk 0:02:58]} 15. b4 {[%clk 0:02:56]}  Ne6 {[%clk 0:02:58]} 16. a4 {[%clk 0:02:56]}  Rac8 {[%clk 0:02:54]} 17. Qd1 {[%clk 0:02:55]}  g6 {[%clk 0:02:53]} 18. Bf1 {[%clk 0:02:50]}  Kg7 {[%clk 0:02:53]} 19. g3 {[%clk 0:02:44]}  h5 {[%clk 0:02:53]} 20. h4 {[%clk 0:02:44]}  Re7 {[%clk 0:02:43]} 21. Bh3 {[%clk 0:02:40]}  Rec7 {[%clk 0:02:38]} 22. b5 {[%clk 0:02:38]}  cxb5 {[%clk 0:02:37]} 23. Ne2 {[%clk 0:02:30]}  Rxc1 {[%clk 0:02:29]} 24. Nxc1 {[%clk 0:02:29]}  Ne4 {[%clk 0:02:27]} 25. axb5 {[%clk 0:02:18]}  Nc3 {[%clk 0:02:04]} 26. Qc2 {[%clk 0:02:17]}  Rc4 {[%clk 0:02:05]} 27. Ra1 {[%clk 0:02:14]}  Nxb5 {[%clk 0:02:05]} 28. Qd2 {[%clk 0:02:10]}  Nc3 {[%clk 0:01:46]} 29. Nd3 {[%clk 0:02:02]}  b5 {[%clk 0:01:31]} 30. Bxe6 {[%clk 0:01:49]}  Qxe6 {[%clk 0:01:29]} 31. Nc5 {[%clk 0:01:48]}  Qf5 {[%clk 0:01:28]} 32. Kg2 {[%clk 0:01:31]}  Ne4 {[%clk 0:01:10]} 33. Qb2 {[%clk 0:01:30]}  Nxf2 {[%clk 0:01:05]} 34. e4 {[%clk 0:00:49]}  Qh3+ {[%clk 0:00:36]} 35. Kf3 {[%clk 0:00:49]}  Nxe4 {[%clk 0:00:36]} 36. Nxe4 {[%clk 0:00:48]}  dxe4+ {[%clk 0:00:37]} 37. Kxe4 {[%clk 0:00:45]}  Qg4+ {[%clk 0:00:36]} 38. Ke3 {[%clk 0:00:43]}  Qxg3+ {[%clk 0:00:36]} 39. Ke4 {[%clk 0:00:44]}  Qg4+ {[%clk 0:00:36]} 40. Ke3 {[%clk 0:00:44]}  Qg3+ {[%clk 0:00:34]} 41. Ke4 {[%clk 0:00:44]}  Qxh4+ {[%clk 0:00:34]} 42. Kd3 {[%clk 0:00:41]}  Qh3+ {[%clk 0:00:33]} 43. Ke4 {[%clk 0:00:41]}  Qf5+ {[%clk 0:00:33]} 44. Ke3 {[%clk 0:00:42]}  Rc2 {[%clk 0:00:32]} 0-1


[Site "https://www.chess.com"]

[Event "Titled Tuesday Blitz November 29 Early 2022"]
[White "Chigaev, Maksim"]
[Black "Rustemov, Alexander"]
[WhiteFideId "4108116"]
[BlackFideId "4119002"]
[WhiteElo "2541"]
[BlackElo "2869"]
[Result "1/2-1/2"]
[Round "09"]
[TimeControl "180+1"]
[Date "2022.11.29"]
[WhiteClock "0:00:09"]
[BlackClock "0:00:14"]

1. c4 {[%clk 0:03:00]}  c5 {[%clk 0:02:55]} 2. Nf3 {[%clk 0:03:00]}  g6 {[%clk 0:02:52]} 3. d4 {[%clk 0:02:59]}  cxd4 {[%clk 0:02:52]} 4. Nxd4 {[%clk 0:03:00]}  Bg7 {[%clk 0:02:52]} 5. e4 {[%clk 0:03:00]}  Nc6 {[%clk 0:02:51]} 6. Be3 {[%clk 0:03:01]}  d6 {[%clk 0:02:51]} 7. Nc3 {[%clk 0:02:59]}  Nf6 {[%clk 0:02:50]} 8. Be2 {[%clk 0:02:54]}  O-O {[%clk 0:02:50]} 9. O-O {[%clk 0:02:54]}  Nxd4 {[%clk 0:02:50]} 10. Bxd4 {[%clk 0:02:53]}  Bd7 {[%clk 0:02:48]} 11. h3 {[%clk 0:02:53]}  Bc6 {[%clk 0:02:47]} 12. Qc2 {[%clk 0:02:52]}  a5 {[%clk 0:02:46]} 13. Rad1 {[%clk 0:02:50]}  Nd7 {[%clk 0:02:45]} 14. Be3 {[%clk 0:02:32]}  a4 {[%clk 0:02:42]} 15. b4 {[%clk 0:02:23]}  axb3 {[%clk 0:02:40]} 16. axb3 {[%clk 0:02:24]}  Qa5 {[%clk 0:02:40]} 17. Nd5 {[%clk 0:02:24]}  Bxd5 {[%clk 0:02:37]} 18. Rxd5 {[%clk 0:02:25]}  Qa2 {[%clk 0:02:31]} 19. Qxa2 {[%clk 0:02:20]}  Rxa2 {[%clk 0:02:30]} 20. Bf3 {[%clk 0:02:21]}  Rb2 {[%clk 0:02:21]} 21. Rb5 {[%clk 0:02:20]}  b6 {[%clk 0:02:10]} 22. Rd1 {[%clk 0:02:12]}  Rb8 {[%clk 0:01:45]} 23. Bc1 {[%clk 0:01:15]}  Ra2 {[%clk 0:01:41]} 24. Bg5 {[%clk 0:01:13]}  Bf6 {[%clk 0:01:40]} 25. Bxf6 {[%clk 0:00:58]}  Nxf6 {[%clk 0:01:39]} 26. e5 {[%clk 0:00:58]}  dxe5 {[%clk 0:01:38]} 27. Rxe5 {[%clk 0:00:59]}  e6 {[%clk 0:01:36]} 28. Rb5 {[%clk 0:00:59]}  Ra5 {[%clk 0:01:29]} 29. Rb4 {[%clk 0:00:40]}  Rc5 {[%clk 0:01:19]} 30. Rd6 {[%clk 0:00:37]}  b5 {[%clk 0:01:19]} 31. Bc6 {[%clk 0:00:23]}  Rb6 {[%clk 0:01:03]} 32. Rd8+ {[%clk 0:00:20]}  Kg7 {[%clk 0:01:03]} 33. Bxb5 {[%clk 0:00:20]}  Nd5 {[%clk 0:00:53]} 34. cxd5 {[%clk 0:00:11]}  exd5 {[%clk 0:00:47]} 35. Rf4 {[%clk 0:00:09]}  Rcxb5 {[%clk 0:00:44]} 36. Rd7 {[%clk 0:00:09]}  Rf6 {[%clk 0:00:44]} 37. Rd4 {[%clk 0:00:07]}  Rf5 {[%clk 0:00:32]} 38. b4 {[%clk 0:00:08]}  Kf6 {[%clk 0:00:32]} 39. f4 {[%clk 0:00:08]}  Kg7 {[%clk 0:00:24]} 40. g4 {[%clk 0:00:07]}  Rf6 {[%clk 0:00:23]} 41. R7xd5 {[%clk 0:00:03]}  Rxd5 {[%clk 0:00:22]} 42. Rxd5 {[%clk 0:00:04]}  Rxf4 {[%clk 0:00:23]} 43. b5 {[%clk 0:00:05]}  Rf3 {[%clk 0:00:22]} 44. Kg2 {[%clk 0:00:05]}  Rb3 {[%clk 0:00:22]} 45. g5 {[%clk 0:00:06]}  h6 {[%clk 0:00:19]} 46. h4 {[%clk 0:00:06]}  hxg5 {[%clk 0:00:17]} 47. hxg5 {[%clk 0:00:07]}  f5 {[%clk 0:00:17]} 48. Rd7+ {[%clk 0:00:04]}  Kf8 {[%clk 0:00:16]} 49. Rb7 {[%clk 0:00:05]}  f4 {[%clk 0:00:13]} 50. Kf2 {[%clk 0:00:06]}  f3 {[%clk 0:00:13]} 51. Kg3 {[%clk 0:00:05]}  Kg8 {[%clk 0:00:13]} 52. b6 {[%clk 0:00:05]}  Kf8 {[%clk 0:00:13]} 53. Kf2 {[%clk 0:00:06]}  Kg8 {[%clk 0:00:13]} 54. Rb8+ {[%clk 0:00:06]}  Kg7 {[%clk 0:00:14]} 55. b7 {[%clk 0:00:07]}  Kh7 {[%clk 0:00:13]} 56. Kg3 {[%clk 0:00:07]}  Kg7 {[%clk 0:00:14]} 57. Kf2 {[%clk 0:00:07]}  Kh7 {[%clk 0:00:14]} 58. Kg3 {[%clk 0:00:08]}  Kg7 {[%clk 0:00:14]} 59. Kf2 {[%clk 0:00:09]} 1/2-1/2


[Site "https://www.chess.com"]

[Event "Titled Tuesday Blitz November 29 Early 2022"]
[White "Cramling Bellon, Anna"]
[Black "Petrova, Irina"]
[WhiteFideId "32009232"]
[BlackFideId "14124122"]
[WhiteElo "1972"]
[BlackElo "2023"]
[Result "0-1"]
[Round "09"]
[TimeControl "180+1"]
[Date "2022.11.30"]
[WhiteClock "0:00:02"]
[BlackClock "0:00:51"]

1. d4 {[%clk 0:02:45]}  d6 {[%clk 0:03:00]} 2. Nf3 {[%clk 0:02:41]}  g6 {[%clk 0:03:00]} 3. c4 {[%clk 0:02:41]}  Bg7 {[%clk 0:02:59]} 4. e4 {[%clk 0:02:41]}  Bg4 {[%clk 0:02:51]} 5. Be2 {[%clk 0:02:41]}  Nc6 {[%clk 0:02:37]} 6. Be3 {[%clk 0:02:39]}  Bxf3 {[%clk 0:02:30]} 7. Bxf3 {[%clk 0:02:38]}  e5 {[%clk 0:02:30]} 8. d5 {[%clk 0:02:33]}  Nd4 {[%clk 0:02:30]} 9. Nc3 {[%clk 0:02:09]}  Ne7 {[%clk 0:02:11]} 10. O-O {[%clk 0:02:02]}  O-O {[%clk 0:02:08]} 11. Bxd4 {[%clk 0:01:34]}  exd4 {[%clk 0:02:09]} 12. Ne2 {[%clk 0:01:31]}  c5 {[%clk 0:02:04]} 13. dxc6 {[%clk 0:00:46]}  Nxc6 {[%clk 0:02:03]} 14. Rb1 {[%clk 0:00:44]}  Qf6 {[%clk 0:01:56]} 15. b4 {[%clk 0:00:40]}  Rac8 {[%clk 0:01:42]} 16. b5 {[%clk 0:00:35]}  Ne5 {[%clk 0:01:35]} 17. Nxd4 {[%clk 0:00:35]}  Nxc4 {[%clk 0:01:34]} 18. Nb3 {[%clk 0:00:31]}  Na3 {[%clk 0:01:31]} 19. Rc1 {[%clk 0:00:29]}  Rxc1 {[%clk 0:01:25]} 20. Qxc1 {[%clk 0:00:30]}  Nxb5 {[%clk 0:01:20]} 21. Rd1 {[%clk 0:00:24]}  Nc3 {[%clk 0:01:17]} 22. Rd3 {[%clk 0:00:18]}  Re8 {[%clk 0:01:15]} 23. Re3 {[%clk 0:00:06]}  Nxa2 {[%clk 0:01:09]} 24. Qb1 {[%clk 0:00:05]}  Nc3 {[%clk 0:01:05]} 25. Qc1 {[%clk 0:00:03]}  Rc8 {[%clk 0:00:56]} 26. g3 {[%clk 0:00:02]}  Qxf3 {[%clk 0:00:52]} 27. Rxf3 {[%clk 0:00:02]}  Ne2+ {[%clk 0:00:52]} 28. Kg2 {[%clk 0:00:03]}  Nxc1 {[%clk 0:00:52]} 29. Nxc1 {[%clk 0:00:03]}  Rxc1 {[%clk 0:00:52]} 30. Rb3 {[%clk 0:00:03]}  Rc7 {[%clk 0:00:52]} 31. f4 {[%clk 0:00:03]}  Bd4 {[%clk 0:00:51]} 32. Kf3 {[%clk 0:00:03]}  Rc3+ {[%clk 0:00:50]} 33. Rxc3 {[%clk 0:00:02]}  Bxc3 {[%clk 0:00:51]} 0-1


[Site "https://www.chess.com"]

[Event "Titled Tuesday Blitz November 29 Early 2022"]
[White "Devaev, Alexander"]
[Black "Buksa, Nataliya"]
[WhiteFideId "4169395"]
[BlackFideId "14123622"]
[WhiteElo "2225"]
[BlackElo "2313"]
[Result "0-1"]
[Round "09"]
[TimeControl "180+1"]
[Date "2022.11.30"]
[WhiteClock "0:00:01"]
[BlackClock "0:01:50"]

1. d4 {[%clk 0:03:00]}  d5 {[%clk 0:02:57]} 2. Nf3 {[%clk 0:02:58]}  e6 {[%clk 0:02:57]} 3. c4 {[%clk 0:02:58]}  Nf6 {[%clk 0:02:57]} 4. Nc3 {[%clk 0:02:59]}  Nbd7 {[%clk 0:02:56]} 5. Bg5 {[%clk 0:02:50]}  Be7 {[%clk 0:02:55]} 6. e3 {[%clk 0:02:51]}  h6 {[%clk 0:02:55]} 7. Bh4 {[%clk 0:02:51]}  O-O {[%clk 0:02:56]} 8. Qc2 {[%clk 0:02:50]}  c5 {[%clk 0:02:56]} 9. dxc5 {[%clk 0:02:30]}  Nxc5 {[%clk 0:02:52]} 10. cxd5 {[%clk 0:02:24]}  Nxd5 {[%clk 0:02:51]} 11. Nxd5 {[%clk 0:01:53]}  Bxh4 {[%clk 0:02:47]} 12. Qxc5 {[%clk 0:01:48]}  exd5 {[%clk 0:02:47]} 13. Nxh4 {[%clk 0:01:37]}  Qxh4 {[%clk 0:02:45]} 14. Be2 {[%clk 0:01:35]}  Be6 {[%clk 0:02:42]} 15. O-O {[%clk 0:01:33]}  Rfc8 {[%clk 0:02:43]} 16. Qb5 {[%clk 0:01:26]}  b6 {[%clk 0:02:40]} 17. Rac1 {[%clk 0:01:21]}  Qf6 {[%clk 0:02:37]} 18. Bf3 {[%clk 0:01:15]}  Rxc1 {[%clk 0:02:36]} 19. Rxc1 {[%clk 0:01:15]}  Rd8 {[%clk 0:02:36]} 20. Rd1 {[%clk 0:00:59]}  d4 {[%clk 0:02:35]} 21. exd4 {[%clk 0:00:26]}  Rxd4 {[%clk 0:02:34]} 22. Rxd4 {[%clk 0:00:27]}  Qxd4 {[%clk 0:02:33]} 23. a3 {[%clk 0:00:26]}  g6 {[%clk 0:02:30]} 24. h3 {[%clk 0:00:23]}  Kg7 {[%clk 0:02:30]} 25. Qe2 {[%clk 0:00:22]}  a5 {[%clk 0:02:27]} 26. Qb5 {[%clk 0:00:20]}  h5 {[%clk 0:02:26]} 27. h4 {[%clk 0:00:18]}  Kh7 {[%clk 0:02:19]} 28. g3 {[%clk 0:00:18]}  Kg7 {[%clk 0:02:17]} 29. Kg2 {[%clk 0:00:19]}  Bc4 {[%clk 0:02:16]} 30. Qg5 {[%clk 0:00:13]}  Qxb2 {[%clk 0:02:11]} 31. Bxh5 {[%clk 0:00:14]}  Qxa3 {[%clk 0:01:59]} 32. Qe5+ {[%clk 0:00:10]}  Kh7 {[%clk 0:01:59]} 33. Bf3 {[%clk 0:00:09]}  Qc5 {[%clk 0:01:55]} 34. Qf6 {[%clk 0:00:09]}  Bd5 {[%clk 0:01:54]} 35. Bxd5 {[%clk 0:00:02]}  Qxd5+ {[%clk 0:01:54]} 36. Kg1 {[%clk 0:00:02]}  b5 {[%clk 0:01:53]} 37. Qb6 {[%clk 0:00:03]}  a4 {[%clk 0:01:53]} 38. Qa7 {[%clk 0:00:03]}  Kg7 {[%clk 0:01:52]} 39. Kh2 {[%clk 0:00:01]}  Qe5 {[%clk 0:01:50]} 0-1


[Site "https://www.chess.com"]

[Event "Titled Tuesday Blitz November 29 Early 2022"]
[White "Durarbayli, Vasif"]
[Black "Tarlabasi, Emirhan"]
[WhiteFideId "13402935"]
[BlackFideId "6350275"]
[WhiteElo "2586"]
[BlackElo "2200"]
[Result "1-0"]
[Round "09"]
[TimeControl "180+1"]
[Date "2022.11.29"]
[WhiteClock "0:00:28"]
[BlackClock "0:00:22"]

1. e4 {[%clk 0:03:00]}  c5 {[%clk 0:02:53]} 2. Nf3 {[%clk 0:03:00]}  e6 {[%clk 0:02:54]} 3. d4 {[%clk 0:03:00]}  cxd4 {[%clk 0:02:55]} 4. Nxd4 {[%clk 0:03:00]}  Nf6 {[%clk 0:02:55]} 5. Nc3 {[%clk 0:03:00]}  Nc6 {[%clk 0:02:56]} 6. Ndb5 {[%clk 0:03:01]}  Bb4 {[%clk 0:02:56]} 7. a3 {[%clk 0:03:00]}  Bxc3+ {[%clk 0:02:56]} 8. Nxc3 {[%clk 0:03:00]}  d5 {[%clk 0:02:57]} 9. exd5 {[%clk 0:03:01]}  Nxd5 {[%clk 0:02:58]} 10. Nxd5 {[%clk 0:02:52]}  exd5 {[%clk 0:02:58]} 11. Be2 {[%clk 0:02:48]}  Bf5 {[%clk 0:02:57]} 12. O-O {[%clk 0:02:47]}  d4 {[%clk 0:02:56]} 13. Bd3 {[%clk 0:02:43]}  Bxd3 {[%clk 0:02:56]} 14. Re1+ {[%clk 0:02:41]}  Ne7 {[%clk 0:02:56]} 15. cxd3 {[%clk 0:02:37]}  O-O {[%clk 0:02:56]} 16. Qg4 {[%clk 0:02:21]}  Re8 {[%clk 0:02:47]} 17. Bg5 {[%clk 0:02:18]}  Qd6 {[%clk 0:02:31]} 18. Bxe7 {[%clk 0:02:11]}  Rxe7 {[%clk 0:02:32]} 19. Rxe7 {[%clk 0:02:11]}  Qxe7 {[%clk 0:02:33]} 20. Qxd4 {[%clk 0:02:10]}  a6 {[%clk 0:02:16]} 21. Qe3 {[%clk 0:02:00]}  Qf6 {[%clk 0:02:12]} 22. d4 {[%clk 0:01:58]}  Rd8 {[%clk 0:02:11]} 23. Rd1 {[%clk 0:01:58]}  h6 {[%clk 0:02:09]} 24. Qe4 {[%clk 0:01:54]}  Qb6 {[%clk 0:02:07]} 25. Rd2 {[%clk 0:01:47]}  Qa5 {[%clk 0:02:04]} 26. Qe3 {[%clk 0:01:37]}  Qa4 {[%clk 0:01:59]} 27. h3 {[%clk 0:01:36]}  Re8 {[%clk 0:01:59]} 28. Qf3 {[%clk 0:01:30]}  Qd7 {[%clk 0:01:55]} 29. d5 {[%clk 0:01:28]}  Qd6 {[%clk 0:01:53]} 30. g3 {[%clk 0:01:27]}  Re5 {[%clk 0:01:52]} 31. Kg2 {[%clk 0:01:28]}  h5 {[%clk 0:01:50]} 32. h4 {[%clk 0:01:27]}  g6 {[%clk 0:01:50]} 33. Kh2 {[%clk 0:01:26]}  Rf5 {[%clk 0:01:50]} 34. Qe4 {[%clk 0:01:23]}  Re5 {[%clk 0:01:47]} 35. Qf4 {[%clk 0:01:16]}  Kg7 {[%clk 0:01:41]} 36. Qd4 {[%clk 0:01:07]}  Kg8 {[%clk 0:01:40]} 37. b4 {[%clk 0:01:07]}  b6 {[%clk 0:01:33]} 38. Qc4 {[%clk 0:01:02]}  Re1 {[%clk 0:01:19]} 39. Qxa6 {[%clk 0:00:43]}  Qe5 {[%clk 0:01:06]} 40. Qa8+ {[%clk 0:00:39]}  Kg7 {[%clk 0:01:02]} 41. d6 {[%clk 0:00:40]}  Qc3 {[%clk 0:00:29]} 42. Qd5 {[%clk 0:00:38]}  Re5 {[%clk 0:00:21]} 43. Qxe5+ {[%clk 0:00:28]}  Qxe5 {[%clk 0:00:22]} 44. d7 {[%clk 0:00:28]} 1-0


[Site "https://www.chess.com"]

[Event "Titled Tuesday Blitz November 29 Early 2022"]
[White "Eynullayev, Atilla"]
[Black "Gabrielian, Artur"]
[WhiteFideId "13413570"]
[BlackFideId "4131002"]
[WhiteElo "2181"]
[BlackElo "2432"]
[Result "1-0"]
[Round "09"]
[TimeControl "180+1"]
[Date "2022.11.30"]
[WhiteClock "0:01:37"]
[BlackClock "0:00:02"]

1. d4 {[%clk 0:03:00]}  Nf6 {[%clk 0:02:58]} 2. c4 {[%clk 0:03:01]}  c5 {[%clk 0:02:57]} 3. d5 {[%clk 0:03:01]}  e6 {[%clk 0:02:58]} 4. Nc3 {[%clk 0:03:01]}  exd5 {[%clk 0:02:58]} 5. cxd5 {[%clk 0:03:02]}  d6 {[%clk 0:02:59]} 6. e4 {[%clk 0:03:03]}  g6 {[%clk 0:02:59]} 7. f4 {[%clk 0:03:03]}  Bg7 {[%clk 0:02:59]} 8. Bb5+ {[%clk 0:03:02]}  Nfd7 {[%clk 0:02:59]} 9. Bd3 {[%clk 0:03:03]}  O-O {[%clk 0:02:58]} 10. Nf3 {[%clk 0:03:03]}  a6 {[%clk 0:02:57]} 11. a4 {[%clk 0:03:03]}  Nf6 {[%clk 0:02:57]} 12. O-O {[%clk 0:03:03]}  Bg4 {[%clk 0:02:57]} 13. h3 {[%clk 0:03:03]}  Bxf3 {[%clk 0:02:58]} 14. Qxf3 {[%clk 0:03:04]}  Nbd7 {[%clk 0:02:58]} 15. Kh1 {[%clk 0:03:02]}  Re8 {[%clk 0:02:58]} 16. Be3 {[%clk 0:02:56]}  Qc7 {[%clk 0:02:58]} 17. Rfe1 {[%clk 0:02:55]}  Rab8 {[%clk 0:02:57]} 18. Rac1 {[%clk 0:02:45]}  c4 {[%clk 0:02:57]} 19. Nb1 {[%clk 0:02:27]}  b5 {[%clk 0:02:54]} 20. axb5 {[%clk 0:02:27]}  axb5 {[%clk 0:02:55]} 21. b3 {[%clk 0:02:28]}  Qa5 {[%clk 0:01:36]} 22. bxc4 {[%clk 0:02:26]}  bxc4 {[%clk 0:01:35]} 23. Bxc4 {[%clk 0:02:23]}  Rxe4 {[%clk 0:01:21]} 24. Bd3 {[%clk 0:02:21]}  Ree8 {[%clk 0:01:14]} 25. Bd2 {[%clk 0:02:21]}  Rxe1+ {[%clk 0:01:06]} 26. Rxe1 {[%clk 0:02:19]}  Qxd5 {[%clk 0:01:01]} 27. Qxd5 {[%clk 0:02:15]}  Nxd5 {[%clk 0:00:59]} 28. Bc4 {[%clk 0:02:08]}  N5f6 {[%clk 0:00:24]} 29. Nc3 {[%clk 0:02:06]}  Nb6 {[%clk 0:00:19]} 30. Ba2 {[%clk 0:02:04]}  d5 {[%clk 0:00:15]} 31. Rb1 {[%clk 0:02:04]}  d4 {[%clk 0:00:13]} 32. Na4 {[%clk 0:01:55]}  Nbd7 {[%clk 0:00:12]} 33. Rxb8+ {[%clk 0:01:55]}  Nxb8 {[%clk 0:00:13]} 34. Nc5 {[%clk 0:01:55]}  Nc6 {[%clk 0:00:12]} 35. Kg1 {[%clk 0:01:56]}  Bf8 {[%clk 0:00:10]} 36. Nd3 {[%clk 0:01:54]}  Kg7 {[%clk 0:00:07]} 37. Kf1 {[%clk 0:01:53]}  Bd6 {[%clk 0:00:07]} 38. Ke2 {[%clk 0:01:53]}  h5 {[%clk 0:00:07]} 39. Kf3 {[%clk 0:01:53]}  Ne7 {[%clk 0:00:06]} 40. Nb4 {[%clk 0:01:49]}  Nf5 {[%clk 0:00:05]} 41. Nc6 {[%clk 0:01:45]}  h4 {[%clk 0:00:04]} 42. Bc1 {[%clk 0:01:43]}  d3 {[%clk 0:00:04]} 43. Bb2 {[%clk 0:01:39]}  Bc7 {[%clk 0:00:04]} 44. Nb4 {[%clk 0:01:36]}  d2 {[%clk 0:00:02]} 45. Ke2 {[%clk 0:01:37]} 1-0


[Site "https://www.chess.com"]